bitfinex/quotes_ETHUSD_20240709
["timestamp","ask_amount","ask_price","bid_price","bid_amount"]
[1720507058160,2.53142261,3093.0,3092.8,3.23331]
[1720507058362,0.04164281,3092.9,3092.8,3.23331]
[1720507058707,1.01496116,3093.2,3092.9,3.2332]
[1720507058991,2.5314689,3093.1,3093.0,3.2331]
[1720507059499,2.5314434,3093.1,3093.0,3.2331]
[1720507059861,2.53143475,3093.1,3093.0,3.2331]
[1720507060102,1.1201077,3093.1,3093.0,3.2331]
[1720507060409,1.01496116,3093.3,3093.1,3.23294]
[1720507060620,1.01496116,3093.3,3093.2,3.23289]
[1720507060778,3.54629743,3093.4,3092.6,2.41015763]
[1720507060980,0.33851573,3093.5,3092.7,3.23339]
[1720507061196,0.33851573,3093.5,3093.4,6.46536]
[1720507061677,0.33851573,3093.5,3093.4,9.69804]
[1720507062684,0.33851573,3093.5,3093.4,6.46536]
[1720507064580,0.33851573,3093.5,3093.0,3.0]
[1720507064826,0.33851573,3093.5,3092.9,3.2332]
[1720507065216,0.33851573,3093.5,3092.1,4.4881]
[1720507065217,3.54612997,3093.4,3093.0,3.2331]
[1720507065526,1.01496116,3093.4,3093.1,3.233]
[1720507065682,0.33851573,3093.5,3093.4,3.23268]
[1720507066026,1.72915651,3093.5,3092.9,3.23312]
[1720507066324,0.33851573,3093.5,3092.8,3.23324]
[1720507066681,0.33851573,3093.5,3093.1,3.23295]
[1720507066882,2.53116226,3093.4,3093.1,3.23295]
[1720507067078,1.01496116,3093.4,3093.1,3.23295]
[1720507067281,0.04021401,3093.3,3093.1,3.23295]
[1720507067712,1.35347689,3093.5,3093.2,3.23289]
[1720507067880,2.53118554,3093.4,3093.2,3.23289]
[1720507068096,0.33851573,3093.5,3093.4,3.23268]
[1720507068345,0.33851573,3093.5,3093.4,6.46536]
[1720507069089,0.33851573,3093.5,3093.2,3.23287]
[1720507070226,0.33851573,3093.5,3093.0,3.23307]
[1720507070391,1.35528653,3093.5,3093.0,3.23307]
[1720507071250,0.33851573,3093.5,3093.1,3.23298]
[1720507071616,0.33851573,3093.5,3093.4,3.23268]
[1720507071837,0.33851573,3093.5,3093.2,3.23282]
[1720507072013,0.33851573,3093.5,3093.0,3.23309]
[1720507072356,0.33851573,3093.5,3093.1,3.23299]
[1720507073449,1.41110314,3093.4,3092.8,3.23328]
[1720507073661,2.13674008,3093.3,3092.8,3.23328]
[1720507073840,1.41110314,3093.2,3092.8,3.23328]
[1720507074218,2.42787394,3093.2,3092.9,3.2332]
[1720507074417,2.42787394,3093.2,3092.4,3.23364]
[1720507074418,1.41110314,3093.1,3092.4,3.23364]
[1720507074662,2.13688454,3093.0,3092.4,3.23364]
[1720507074815,3.54798768,3092.9,3092.2,3.2339]
[1720507075138,3.54806573,3092.8,3092.3,3.23383]
[1720507075327,3.54806573,3092.7,3092.3,3.23383]
[1720507075556,1.0167708,3092.7,3092.0,3.23414]
[1720507075944,1.41153741,3092.6,3091.9,3.23422]
[1720507076253,2.13706159,3092.5,3091.6,3.23454]
[1720507076556,2.13706159,3092.5,3091.6,3.23456]
[1720507076557,1.0167708,3092.2,3091.6,3.23456]
[1720507076735,3.548599,3092.1,3091.4,3.23475]
[1720507077059,1.41153741,3092.0,3091.4,3.23475]
[1720507077652,1.0167708,3092.1,3091.6,3.23455]
[1720507078025,1.41184065,3092.0,3091.6,3.23455]
[1720507078235,0.37843059,3092.0,3090.6,5.69781]
[1720507078436,1.39520139,3092.0,3090.8,3.23538]
[1720507078621,1.39520139,3092.0,3090.9,3.23529]
[1720507078622,2.53255427,3091.9,3090.9,3.23529]
[1720507078821,0.77788501,3091.9,3091.0,3.23519]
[1720507079060,1.79465581,3091.9,3091.0,3.23519]
[1720507079263,0.77788501,3091.9,3090.9,3.2353]
[1720507079560,0.37843059,3092.0,3090.9,3.2353]
[1720507079750,1.39458546,3092.0,3091.0,3.0]
[1720507080360,1.39458546,3092.0,3091.2,3.23498]
[1720507080555,1.01615487,3092.0,3091.3,3.23484]
[1720507080739,3.85027316,3092.1,3091.3,3.23484]
[1720507080740,2.4954,3092.1,3091.6,3.23455]
[1720507081069,2.4954,3092.1,3091.4,3.23477]
[1720507081070,1.01615487,3092.2,3091.7,3.23444]
[1720507081363,1.98425767,3092.2,3091.5,3.23461]
[1720507081667,5.97983705,3092.1,3091.3,3.23488]
[1720507081972,1.01561758,3091.9,3090.6,2.235]
[1720507082119,1.12061851,3091.8,3090.6,2.235]
[1720507082325,0.03790586,3091.8,3091.1,2.235]
[1720507082521,0.03790586,3091.8,3091.7,3.23446]
[1720507082746,7.31,3092.3,3091.8,3.23427]
[1720507082747,8.32561758,3092.3,3091.8,3.23427]
[1720507082959,7.31,3092.3,3091.9,3.23425]
[1720507083323,7.31,3092.3,3092.1,3.23401]
[1720507083530,1.01561758,3093.0,3091.9,0.06468063]
[1720507083866,1.01561758,3093.1,3092.7,3.23334]
[1720507084024,0.338361,3092.9,3092.8,3.2333]
[1720507084231,7.31,3093.5,3093.0,3.23308]
[1720507084232,1.01561758,3093.5,3093.0,3.23308]
[1720507084431,1.01561758,3093.5,3093.3,3.23278]
[1720507084729,7.31,3093.9,3093.5,3.23257]
[1720507085052,1.01561758,3094.5,3093.8,3.23224]
[1720507085229,1.01561758,3094.8,3094.1,3.23195]
[1720507085426,1.41499092,3094.8,3094.1,3.23195]
[1720507085625,0.39937334,3094.8,3094.1,3.23195]
[1720507085855,1.41499092,3094.8,3094.0,3.23206]
[1720507086084,3.54599397,3094.7,3093.7,3.23235]
[1720507086227,1.11965138,3094.6,3093.2,5.235]
[1720507086570,1.11965138,3094.6,3094.0,3.23205]
[1720507086571,1.01561758,3094.6,3094.0,3.23205]
[1720507086737,1.52281235,3094.7,3094.0,3.23205]
[1720507087068,3.772224,3094.6,3093.7,3.23236]
[1720507087371,2.42644623,3094.5,3093.6,3.23247]
[1720507087537,2.42644623,3094.5,3093.7,3.0]
[1720507087538,1.49915795,3094.5,3093.7,3.0]
[1720507087741,1.49915795,3094.5,3093.7,6.23236]
[1720507087963,1.01393585,3094.4,3093.4,3.23263]
[1720507088140,1.01393585,3094.3,3093.5,3.23257]
[1720507088321,0.24248542,3094.2,3093.5,3.23257]
[1720507088528,1.01393585,3094.3,3093.3,3.23273]
[1720507088769,1.35191446,3094.4,3093.4,3.23259]
[1720507088770,2.42495739,3094.2,3093.4,3.23259]
[1720507088936,1.01393585,3094.3,3093.1,6.23299]
[1720507089138,3.28953585,3094.1,3093.1,3.23299]
[1720507089339,3.28953585,3094.1,3093.0,3.23309]
[1720507089552,3.28953585,3094.1,3093.1,3.23297]
[1720507089874,3.28953585,3094.1,3092.9,3.2332]
[1720507089875,3.54495989,3094.0,3092.9,3.2332]
[1720507090029,1.01393585,3093.8,3092.9,3.2332]
[1720507090435,1.01393585,3093.8,3093.0,3.2331]
[1720507090637,1.01393585,3093.8,3093.1,3.23299]
[1720507090973,1.01393585,3093.9,3093.2,3.23288]
[1720507091177,1.01393585,3094.0,3093.2,3.23288]
[1720507091348,1.01393585,3094.0,3093.5,3.23258]
[1720507091548,1.47808088,3094.0,3093.3,3.23272]
[1720507091778,1.47808088,3094.0,3093.0,3.23308]
[1720507091937,1.01393585,3093.8,3093.1,3.23299]
[1720507092258,1.47808088,3094.0,3093.4,3.2326]
[1720507092457,3.54511217,3093.9,3093.0,3.23303]
[1720507092664,1.01393585,3093.9,3093.0,3.23303]
[1720507092972,1.01393585,3093.9,3092.8,3.2333]
[1720507092973,2.42513351,3093.8,3092.8,3.2333]
[1720507093176,1.01393585,3093.7,3092.9,3.0]
[1720507093476,2.49208041,3093.9,3092.9,6.2332]
[1720507093477,1.01393585,3093.8,3092.9,6.2332]
[1720507093663,1.67294221,3093.8,3092.9,6.2332]
[1720507093887,1.67312431,3093.8,3092.9,6.2332]
[1720507094074,1.67312431,3093.8,3093.1,3.23298]
[1720507094248,1.67312431,3093.8,3092.9,3.0]
[1720507094249,1.01411795,3093.8,3092.9,3.0]
[1720507094449,1.01411795,3093.8,3092.8,3.23331]
[1720507094691,3.54541657,3093.7,3092.9,3.0]
[1720507094841,0.35454166,3093.6,3092.9,3.0]
[1720507095041,1.36865961,3093.6,3092.6,3.23351]
[1720507095241,3.5455738,3093.5,3092.7,3.23342]
[1720507095473,1.53934522,3093.5,3092.7,3.23342]
[1720507096291,1.53934522,3093.5,3092.6,3.2335]
[1720507096495,0.35454166,3093.6,3093.1,3.23297]
[1720507096496,1.01411795,3093.6,3093.1,3.23297]
[1720507096696,1.35215726,3093.8,3093.0,3.23308]
[1720507096697,1.01411795,3093.7,3093.0,3.23308]
[1720507096983,0.03635979,3093.6,3093.1,3.23297]
[1720507097160,0.03635979,3093.6,3092.5,0.06465745]
[1720507097161,0.03635979,3093.6,3093.2,3.23288]
[1720507098277,0.57663077,3093.6,3092.9,3.23311]
[1720507098476,0.57663077,3093.6,3093.0,3.23308]
[1720507098678,1.59078076,3093.6,3093.0,3.23308]
[1720507100154,1.59078076,3093.6,3092.6,3.23345]
[1720507100381,1.59078076,3093.6,3092.7,3.23338]
[1720507100561,0.29429808,3093.5,3092.8,3.23331]
[1720507100782,0.0364047,3093.4,3092.8,3.23331]
[1720507101188,0.0364047,3093.4,3092.6,3.23347]
[1720507101402,0.0364047,3093.4,3092.2,5.235]
[1720507101403,1.23906707,3093.4,3092.7,3.23341]
[1720507101728,2.3173,3093.3,3092.3,3.23383]
[1720507101872,4.07691466,3093.2,3092.3,3.23383]
[1720507102077,3.54587125,3093.1,3092.3,3.23383]
[1720507102317,1.01414999,3093.1,3092.2,3.23393]
[1720507102488,1.01414999,3093.1,3092.3,3.23382]
[1720507102489,0.03633071,3093.0,3092.3,3.23382]
[1720507102911,0.03633071,3093.0,3092.4,3.2337]
[1720507103409,1.54533546,3093.2,3092.4,3.2337]
[1720507103709,0.03629775,3093.1,3092.4,3.2337]
[1720507103917,1.1565468,3093.1,3092.4,3.2337]
[1720507104117,0.03629775,3093.1,3092.4,3.2337]
[1720507104440,1.05044774,3093.1,3092.4,3.2337]
[1720507104587,0.03629775,3093.1,3092.7,3.23338]
[1720507106045,3.33144999,3093.3,3092.7,3.23338]
[1720507106243,3.33144999,3093.3,3092.5,3.23362]
[1720507106244,3.58197021,3093.2,3092.5,3.23362]
[1720507106546,3.58197021,3093.2,3091.8,3.0]
[1720507106547,1.05029553,3093.2,3092.2,3.23387]
[1720507106706,3.54589994,3093.1,3092.3,3.23383]
[1720507106910,1.01414999,3093.1,3092.3,3.23383]
[1720507107111,1.15641507,3093.0,3092.3,3.23383]
[1720507107322,0.0361373,3093.0,3092.5,3.23361]
[1720507107649,0.0361373,3093.0,3092.7,3.2334]
[1720507107956,7.31,3093.4,3093.0,3.23301]
[1720507108244,0.83243303,3093.4,3092.5,3.23358]
[1720507108406,1.1563881,3093.3,3092.6,3.23344]
[1720507108613,0.03623278,3093.3,3092.8,3.2333]
[1720507108851,1.01433031,3093.5,3092.8,3.2333]
[1720507109015,1.45217114,3093.4,3092.8,3.2333]
[1720507109210,0.33207832,3093.4,3092.8,3.2333]
[1720507109634,1.12009761,3093.3,3092.6,3.2335]
[1720507109840,0.03621787,3093.2,3092.6,3.2335]
[1720507110116,1.1201426,3093.1,3092.1,6.23394]
[1720507110423,1.1201426,3093.1,3092.2,3.23384]
[1720507110424,1.42655686,3093.0,3092.2,3.23384]
[1720507110649,1.15640722,3092.9,3092.2,3.23384]
[1720507110807,0.03626462,3092.9,3092.2,3.23384]
[1720507111149,0.03626462,3092.9,3092.3,3.23383]
[1720507111443,1.01433031,3093.2,3092.7,3.2334]
[1720507111652,1.15644749,3093.1,3092.8,3.23324]
[1720507111825,1.15644749,3093.1,3092.7,3.2334]
[1720507111826,0.03627286,3093.1,3092.9,3.2332]
[1720507112005,7.31,3093.4,3093.1,3.23299]
[1720507112212,0.03623079,3093.3,3093.0,0.06465981]
[1720507112411,19.77,3093.8,3093.5,3.23248]
[1720507112643,19.77,3093.8,3092.9,3.23315]
[1720507112644,0.03630677,3093.7,3092.9,1.678]
[1720507112835,0.03630677,3093.7,3093.3,3.23272]
[1720507113033,0.33836635,3093.8,3093.3,3.23272]
[1720507113210,1.15623226,3093.7,3093.3,3.23272]
[1720507113411,1.1199315,3093.6,3093.1,3.23297]
[1720507113607,0.03637986,3093.5,3093.1,3.23297]
[1720507113811,0.33836635,3093.8,3093.1,3.23297]
[1720507113812,1.63596633,3093.8,3093.1,3.23297]
[1720507114053,1.15637723,3093.7,3093.1,3.23297]
[1720507114259,1.11997235,3093.6,3093.2,3.23281]
[1720507114559,0.03640526,3093.5,3093.2,3.23281]
[1720507115032,1.63596633,3093.8,3093.2,3.23281]
[1720507115213,1.15654321,3093.7,3093.2,3.23281]
[1720507115452,1.11996933,3093.6,3093.2,3.23281]
[1720507115637,0.03654886,3093.5,3093.2,3.23281]
[1720507115856,1.11996933,3093.4,3093.2,3.23281]
[1720507116162,1.63596633,3093.8,3093.2,3.23281]
[1720507116163,0.03651955,3093.3,3093.2,3.23281]
[1720507116473,0.33836635,3093.8,3093.3,3.23273]
[1720507116656,1.156434,3093.7,3093.3,3.23273]
[1720507116841,1.11989114,3093.6,3093.3,3.23273]
[1720507117039,0.03652583,3093.5,3093.3,3.23273]
[1720507117246,0.33836635,3093.8,3093.3,3.23273]
[1720507117445,1.15645038,3093.7,3093.3,3.23273]
[1720507117765,0.0365724,3093.7,3093.6,6.46494]
[1720507117930,0.0365724,3093.7,3093.6,6.529582]
[1720507118263,7.31,3094.2,3093.6,6.529582]
[1720507118264,7.31,3094.2,3094.1,3.23195]
[1720507118477,7.6483788,3094.2,3094.1,3.23195]
[1720507118760,7.31,3094.2,3094.1,3.23195]
[1720507119076,7.31,3094.2,3094.1,6.4639]
[1720507119230,2.2776,3094.9,3094.5,3.23153]
[1720507119746,1.45786182,3094.8,3094.5,3.23153]
[1720507120072,0.33838062,3094.8,3094.5,3.23153]
[1720507120256,0.33838062,3094.8,3094.3,3.23172]
[1720507120427,0.33838062,3094.8,3094.4,3.23155]
[1720507120628,0.33838062,3094.8,3094.5,3.23153]
[1720507120838,0.33838062,3094.8,3094.6,3.23142]
[1720507121384,0.33838062,3094.8,3094.3,3.23172]
[1720507121580,0.33838062,3094.8,3093.9,3.23213]
[1720507122080,0.33838062,3094.8,3094.0,3.23195]
[1720507122081,1.11958453,3094.7,3094.0,3.23195]
[1720507122253,1.11958453,3094.6,3093.7,3.0]
[1720507122584,1.11958453,3094.5,3093.6,3.23245]
[1720507122779,0.35616845,3094.4,3093.0,2.238]
[1720507122957,1.1197783,3094.3,3093.4,3.23259]
[1720507123155,1.1197783,3094.2,3093.4,3.23259]
[1720507123356,1.1197783,3094.2,3093.2,3.23288]
[1720507123357,1.75107042,3094.3,3093.5,3.23257]
[1720507123561,1.11981399,3094.2,3093.7,3.23236]
[1720507123758,4.01275275,3094.5,3093.5,3.23257]
[1720507123963,4.32404403,3094.4,3093.5,3.23257]
[1720507124156,1.11980946,3094.3,3093.5,3.23257]
[1720507124497,2.13256221,3094.3,3093.5,3.23257]
[1720507124779,1.11980946,3094.2,3093.3,3.23275]
[1720507125085,0.21325622,3094.1,3093.3,3.23275]
[1720507125379,1.11987539,3094.0,3093.2,3.23288]
[1720507125578,1.22600897,3094.1,3093.2,3.23288]
[1720507125785,1.01275275,3094.1,3093.3,3.23277]
[1720507126093,3.54485312,3094.0,3092.9,3.23317]
[1720507126292,1.944,3094.1,3092.9,3.23317]
[1720507126293,2.4027,3093.8,3092.9,3.23317]
[1720507126592,1.1199518,3093.7,3092.9,3.23317]
[1720507127087,0.03680374,3093.6,3093.0,3.23309]
[1720507127589,0.03680374,3093.6,3093.3,3.23278]
[1720507127749,4.01390559,3094.0,3093.3,3.23278]
[1720507127955,0.03675294,3093.5,3093.3,3.23278]
[1720507128150,4.41948923,3094.0,3093.3,3.23278]
[1720507128357,0.03674882,3093.4,3093.3,3.23278]
[1720507128672,0.03674882,3093.4,3093.1,3.233]
[1720507128881,1.01390559,3093.8,3092.9,3.2331]
[1720507129071,2.46290414,3093.7,3092.9,3.2331]
[1720507129272,1.05169854,3093.7,3092.9,3.2331]
[1720507129509,2.42611255,3093.6,3092.9,3.2331]
[1720507129663,1.01490837,3093.6,3092.7,3.23336]
[1720507129859,3.35670837,3093.4,3092.4,3.0]
[1720507130206,3.58309949,3093.3,3092.5,3.23362]
[1720507130378,1.41137846,3093.2,3092.5,3.23362]
[1720507130573,0.03676119,3093.2,3092.6,3.2335]
[1720507133264,0.03676119,3093.2,3092.7,3.23339]
[1720507133465,0.03676119,3093.2,3092.8,3.23324]
[1720507133666,0.03676119,3093.2,3092.9,3.23319]
[1720507133866,0.03676119,3093.2,3093.1,3.233]
[1720507134168,1.0153496,3093.5,3093.1,3.233]
[1720507134389,0.03640946,3093.2,3093.1,3.233]
[1720507134906,8.3253496,3093.6,3093.3,3.23271]
[1720507135073,1.0153496,3093.6,3093.1,3.233]
[1720507135282,3.54660234,3093.5,3093.1,3.233]
[1720507135478,1.01543574,3093.5,3093.1,3.233]
[1720507135879,9.607,3094.0,3093.1,3.233]
[1720507136179,1.01549168,3093.5,3093.0,3.23309]
[1720507136375,1.01549168,3093.5,3093.2,3.23288]
[1720507136682,1.01549168,3093.6,3093.2,3.23288]
[1720507136999,9.607,3094.0,3093.5,3.23258]
[1720507137000,1.01549168,3093.9,3093.5,3.23258]
[1720507137365,7.31,3094.0,3093.5,3.23258]
[1720507137366,8.32549168,3094.0,3093.5,3.23258]
[1720507137563,7.31,3094.0,3093.5,3.23258]
[1720507137792,8.32549168,3094.0,3093.5,3.23258]
[1720507138702,1.01525943,3093.9,3093.3,3.23269]
[1720507138901,3.54615101,3093.9,3093.3,3.23269]
[1720507139080,1.11984885,3093.8,3093.3,3.23269]
[1720507139267,1.11984885,3093.8,3093.4,3.23268]
[1720507139467,1.01525943,3093.9,3093.4,3.23268]
[1720507139894,1.11986362,3093.8,3093.4,3.23268]
[1720507140174,1.01525943,3093.9,3093.2,3.23288]
[1720507140510,4.61091574,3093.8,3093.2,3.23288]
[1720507140809,2.53100158,3093.7,3093.2,3.23288]
[1720507141109,2.0799481,3093.8,3093.3,3.23277]
[1720507141270,1.11991467,3093.7,3093.0,3.23303]
[1720507141606,2.86938128,3093.6,3093.0,3.23303]
[1720507141805,1.11991613,3093.5,3093.0,3.23303]
[1720507142217,0.03659966,3093.4,3093.1,3.23295]
[1720507142711,1.35363025,3093.6,3093.1,3.23295]
[1720507143017,0.03658715,3093.3,3093.1,3.23295]
[1720507143228,1.35363025,3093.6,3093.1,3.23295]
[1720507143522,1.11999827,3093.5,3093.0,3.23305]
[1720507143677,1.1200263,3093.4,3093.0,3.23305]
[1720507143876,1.1200263,3093.4,3092.5,1.678]
[1720507143877,0.03658715,3093.3,3093.2,3.23289]
[1720507144124,0.33837082,3093.6,3093.5,3.23258]
[1720507144796,0.33837082,3093.6,3093.5,6.46516]
[1720507146616,0.33837082,3093.6,3093.5,9.46516]
[1720507146917,0.33837082,3093.6,3093.5,12.69774]
[1720507148317,0.33837082,3093.6,3093.5,15.93032]
[1720507148515,8.32471028,3094.9,3093.5,3.0]
[1720507148702,7.31,3095.2,3095.1,3.23091]
[1720507148910,1.35294704,3095.5,3095.2,3.2308]
[1720507148911,1.01471028,3095.5,3095.2,3.2308]
[1720507149111,1.11928428,3095.4,3095.3,3.2306]
[1720507149425,7.31,3095.7,3095.5,3.23042]
[1720507149639,7.31,3095.7,3094.9,0.06461207]
[1720507149640,7.31,3095.7,3095.3,3.23063]
[1720507149839,0.33836239,3095.4,3095.3,3.23063]
[1720507150041,0.33836239,3095.4,3095.2,3.23077]
[1720507150455,0.33836239,3095.4,3095.3,3.2307]
[1720507150747,0.33836239,3095.4,3095.3,6.4614]
[1720507151110,0.33836239,3095.4,3094.6,3.23137]
[1720507152247,0.33836239,3095.4,3094.8,3.23121]
[1720507152408,0.33836239,3095.4,3094.8,3.23113]
[1720507152605,0.33836239,3095.4,3095.0,3.231]
[1720507153009,0.33836239,3095.4,3095.2,3.23079]
[1720507153451,0.33836239,3095.4,3095.0,3.231]
[1720507153646,0.33836239,3095.4,3094.9,3.23111]
[1720507153812,0.33836239,3095.4,3095.0,3.23094]
[1720507154148,0.33836239,3095.4,3095.1,3.2309]
[1720507154912,0.33836239,3095.4,3095.2,3.23078]
[1720507155114,0.33836239,3095.4,3095.3,3.2307]
[1720507155358,0.33836239,3095.4,3095.0,3.23101]
[1720507155753,0.33836239,3095.4,3094.9,3.23104]
[1720507156059,0.33836239,3095.4,3095.1,3.23084]
[1720507157137,0.03636358,3095.3,3095.1,3.23084]
[1720507158146,0.03636358,3095.3,3094.8,3.23117]
[1720507158446,0.03636358,3095.3,3094.8,3.23122]
[1720507158945,0.03636358,3095.3,3094.9,3.2311]
[1720507160534,0.03636358,3095.3,3095.0,3.23097]
[1720507160885,0.03636358,3095.3,3094.8,3.23115]
[1720507161563,0.03636358,3095.3,3094.6,3.2314]
[1720507161854,4.2762,3095.2,3093.8,3.23219]
[1720507162059,1.944,3095.0,3093.8,3.23219]
[1720507162268,5.39586816,3094.9,3093.9,3.23216]
[1720507162467,4.31243616,3094.9,3093.7,3.23237]
[1720507162654,1.944,3094.7,3093.3,3.23276]
[1720507162854,1.944,3094.7,3093.5,3.23251]
[1720507163055,2.2999,3094.4,3093.3,3.23276]
[1720507163357,1.15606507,3094.3,3093.3,3.23276]
[1720507163536,0.03619787,3094.3,3093.3,3.23276]
[1720507164467,0.03619787,3094.3,3093.4,3.23267]
[1720507166270,0.03619787,3094.3,3093.2,3.23289]
[1720507166440,1.54787841,3094.2,3093.3,3.23279]
[1720507166632,0.03561819,3094.1,3093.4,3.23268]
[1720507168055,0.03561819,3094.1,3093.2,3.23288]
[1720507168454,0.03561819,3094.1,3093.0,5.46807]
[1720507168653,0.03561819,3094.1,3093.1,3.0]
[1720507168981,0.03561819,3094.1,3093.1,6.23299]
[1720507169588,1.11995325,3094.0,3093.1,6.23299]
[1720507169776,0.03561819,3094.1,3093.1,3.0]
[1720507169939,0.03358746,3093.9,3093.0,3.0]
[1720507170441,0.03358746,3093.9,3092.5,4.5731]
[1720507170442,0.03358746,3093.9,3093.1,3.23292]
[1720507171481,0.03358746,3093.9,3093.0,3.23303]
[1720507171648,0.03358746,3093.9,3093.1,3.23297]
[1720507172643,0.03358746,3093.9,3093.1,3.01117]
[1720507172882,0.03358746,3093.9,3092.7,4.91132]
[1720507173181,0.03358746,3093.9,3092.7,1.678]
[1720507173182,5.55275067,3093.8,3092.7,1.678]
[1720507173406,1.12002641,3093.7,3092.6,3.23342]
[1720507173572,1.12002641,3093.7,3092.3,1.678]
[1720507173573,2.494,3093.6,3092.5,3.23362]
[1720507173757,4.169362,3093.6,3092.3,4.91173]
[1720507173947,4.169362,3093.6,3092.4,3.23366]
[1720507173948,1.15352815,3093.5,3092.4,3.23366]
[1720507174282,0.03339601,3093.5,3092.6,3.23351]
[1720507174575,0.30826721,3093.4,3092.6,3.23351]
[1720507174964,0.03337098,3093.3,3092.6,3.23351]
[1720507177479,0.03337098,3093.3,3092.7,3.23341]
[1720507177865,0.03337098,3093.3,3092.8,3.23328]
[1720507178067,0.03337098,3093.3,3092.6,3.23351]
[1720507178393,10.35927614,3093.6,3092.6,3.23351]
[1720507178563,0.03315235,3093.2,3092.7,3.23339]
[1720507178768,1.03592761,3093.5,3092.7,3.23339]
[1720507178981,1.03592761,3093.5,3092.8,3.23321]
[1720507178982,0.03314463,3093.1,3092.8,3.23321]
[1720507179181,1.03592761,3093.5,3092.8,3.23321]
[1720507179363,10.35927614,3093.6,3092.9,3.2332]
[1720507179364,0.03313212,3093.0,3092.9,3.2332]
[1720507179568,7.86527614,3093.6,3093.2,3.23287]
[1720507179569,7.31,3093.6,3093.2,3.23287]
[1720507179979,7.31,3093.6,3093.0,3.23303]
[1720507180324,9.51369,3093.6,3093.0,3.23303]
[1720507180681,9.51369,3093.6,3092.8,3.23328]
[1720507181294,9.51369,3093.6,3092.3,1.678]
[1720507181295,11.45769,3093.6,3092.3,1.678]
[1720507181515,11.45769,3093.6,3092.5,3.23355]
[1720507181717,1.145769,3093.5,3092.5,3.23355]
[1720507182016,1.145769,3093.5,3092.6,3.23352]
[1720507183520,3.0195,3093.4,3092.3,4.91181]
[1720507183681,0.6109269,3093.3,3092.3,3.23381]
[1720507183881,0.6109269,3093.3,3092.2,3.2339]
[1720507184223,2.5549269,3093.3,3092.0,6.46818]
[1720507184391,2.5549269,3093.3,3092.1,3.23404]
[1720507184392,1.944,3093.1,3092.1,3.23404]
[1720507184593,1.944,3092.9,3091.6,3.2345]
[1720507184793,2.494,3092.8,3091.5,3.23467]
[1720507185103,1.944,3092.6,3091.4,3.23471]
[1720507185309,2.494,3092.5,3091.3,3.23486]
[1720507185516,1.944,3092.3,3091.0,3.23517]
[1720507185726,0.55,3092.2,3091.0,3.23517]
[1720507186302,0.55,3092.2,3091.2,3.23491]
[1720507186607,0.55,3092.2,3091.3,3.23486]
[1720507187119,0.0326934,3092.1,3091.3,3.23486]
[1720507187340,0.0326934,3092.1,3091.4,3.23471]
[1720507187341,0.58536274,3092.1,3091.4,3.23471]
[1720507187562,0.0326934,3092.1,3091.6,3.23456]
[1720507187900,7.31,3092.3,3091.7,0.0646876]
[1720507188223,0.03246917,3092.2,3091.8,3.23429]
[1720507188441,0.03246917,3092.2,3091.9,3.23424]
[1720507188640,7.31,3092.3,3091.9,3.23424]
[1720507188843,0.03246003,3092.1,3091.9,3.23424]
[1720507189005,7.31,3092.3,3091.9,3.23424]
[1720507189324,7.31,3092.3,3092.1,3.23396]
[1720507189642,0.03244344,3092.2,3092.1,3.23396]
[1720507189996,7.31,3092.8,3092.1,3.23396]
[1720507190199,0.03244344,3092.2,3092.1,3.23396]
[1720507190438,7.31,3092.8,3092.1,3.23396]
[1720507190633,0.03244344,3092.2,3092.1,3.23396]
[1720507190965,0.03248901,3092.2,3091.6,3.23456]
[1720507191149,1.944,3092.6,3091.6,3.23456]
[1720507191302,1.70299146,3092.5,3091.6,3.23456]
[1720507191646,2.4105,3092.3,3091.2,3.23495]
[1720507191805,1.12047177,3092.2,3091.2,3.23495]
[1720507192141,1.12062242,3092.1,3091.3,3.23484]
[1720507192451,1.15319391,3092.0,3091.1,3.23502]
[1720507192758,1.12062242,3091.9,3090.8,3.23537]
[1720507193035,0.03253589,3091.8,3090.8,3.23537]
[1720507193237,1.12062242,3091.7,3091.1,3.23507]
[1720507193459,0.03253589,3091.8,3091.1,3.23507]
[1720507193743,0.03242066,3091.7,3091.1,3.23507]
[1720507193950,0.54159199,3092.0,3091.1,3.23507]
[1720507194244,1.15312513,3091.9,3091.0,3.23519]
[1720507194403,0.03244572,3091.9,3091.0,3.23519]
[1720507195036,1.12070997,3091.8,3091.0,3.23519]
[1720507195346,0.03242066,3091.7,3091.1,3.23509]
[1720507195550,0.2485592,3091.9,3091.1,3.23509]
[1720507195734,0.03243319,3091.8,3091.2,3.23497]
[1720507196316,0.03243319,3091.8,3091.0,3.23513]
[1720507196524,0.03243319,3091.8,3090.9,3.23527]
[1720507197410,0.03243319,3091.8,3091.1,3.23504]
[1720507197856,0.03243319,3091.8,3090.8,3.2354]
[1720507198009,2.61209924,3091.7,3090.8,3.2354]
[1720507198341,0.03240814,3091.6,3090.8,3.2354]
[1720507198563,0.58240814,3091.6,3090.6,3.23553]
[1720507198745,0.58240814,3091.6,3090.7,3.2355]
[1720507198746,0.49160081,3091.5,3090.7,3.2355]
[1720507198932,0.03238308,3091.4,3090.7,3.2355]
[1720507199132,0.03238308,3091.4,3090.8,3.2354]
[1720507199337,0.03238308,3091.4,3091.0,3.23518]
[1720507199527,2.3896,3091.7,3091.1,3.23502]
[1720507199861,0.03240814,3091.6,3091.1,3.23502]
[1720507200660,0.03240814,3091.6,3090.8,3.23537]
[1720507200830,0.03240814,3091.6,3091.0,3.23512]
[1720507202298,0.03240814,3091.6,3090.8,3.23538]
[1720507202476,0.58240814,3091.6,3090.6,3.23559]
[1720507202672,1.46003962,3091.5,3090.4,3.23574]
[1720507202841,3.61484281,3091.4,3090.0,3.2362]
[1720507203176,3.61484281,3091.4,3088.5,7.44]
[1720507203177,1.944,3090.8,3088.5,7.44]
[1720507203326,1.678,3091.0,3089.3,3.23688]
[1720507203327,1.944,3090.6,3089.3,3.23688]
[1720507203535,1.69405117,3090.5,3089.3,3.23694]
[1720507203748,0.57320836,3090.5,3089.5,3.23669]
[1720507203948,0.57320836,3090.5,3089.6,3.23664]